[Event "Szansa Chess Open 2022"]
[Site "Warsaw"]
[Date "2022.09.17"]
[Round "3.8"]
[White "Psyk, Radoslaw"]
[Black "Goraj, Barbara"]
[Result "1/2-1/2"]
[ECO "B20"]
[WhiteElo "2404"]
[BlackElo "2121"]
[Annotator "ChessBase"]
[PlyCount "171"]
[EventDate "2022.09.17"]
[EventCountry "POL"]
[SourceTitle "playchess.com"]
[Source "ChessBase"]
[SourceQuality "1"]
[TimeControl "900+10"]

1. e4 {[%emt 0:00:03]} c5 2. Be2 {[%emt 0:00:02]} Nc6 {[%emt 0:00:33]} 3. f4 {[%emt 0:00:02]} d5 {[%emt 0:00:49]} 4. d3 {[%emt 0:00:01]} dxe4 {[%emt 0:02:25]} 5. dxe4 {[%emt 0:00:02]} Qxd1+ {[%emt 0:00:03]} 6. Bxd1 {[%emt 0:00:02]} b6 {[%emt 0:00:03]} 7. Nf3 {[%emt 0:00:07]} Bb7 {[%emt 0:00:05]} 8. Nbd2 {[%emt 0:00:37]} g6 {[%emt 0:00:48]} 9. O-O {[%emt 0:00:18]} Bg7 {[%emt 0:01:05]} 10. c3 {[%emt 0:00:03]} Rd8 {[%emt 0:00:28]} 11. Re1 {[%emt 0:02:17]} Nf6 {[%emt 0:02:29]} 12. e5 {[%emt 0:02:58]} Nd5 {[%emt 0:00:11]} 13. Ne4 {[%emt 0:00:02]} O-O {[%emt 0:00:18]} 14. Bc2 {[%emt 0:03:35]} f6 {[%emt 0:00:33]} 15. e6 {[%emt 0:01:00]} f5 {[%emt 0:00:37]} 16. Neg5 {[%emt 0:00:26]} Nc7 {[%emt 0:01:51]} 17. Bd2 {[%emt 0:04:33]} Rd6 {[%emt 0:02:56]} 18. Rad1 {[%emt 0:01:01]} h6 {[%emt 0:00:18]} 19. Nf7 {[%emt 0:00:23]} Rxe6 {[%emt 0:00:25]} 20. N7e5 {[%emt 0:00:33]} Nxe5 {[%emt 0:00:36]} 21. Nxe5 {[%emt 0:00:02]} Rd6 {[%emt 0:00:24]} 22. Bc1 {[%emt 0:00:24]} Kh7 {[%emt 0:01:03]} 23. Nd7 {[%emt 0:00:17]} Re8 {[%emt 0:00:29]} 24. h4 {[%emt 0:00:10]} Bc8 {[%emt 0:00:22]} 25. Ne5 {[%emt 0:00:06]} h5 {[%emt 0:00:12]} 26. Bb3 {[%emt 0:00:11]} Bxe5 {[%emt 0:00:15]} 27. Rxe5 {[%emt 0:00:12]} Rxd1+ {[%emt 0:00:04]} 28. Bxd1 {[%emt 0:00:02]} Be6 {[%emt 0:00:14]} 29. b3 {[%emt 0:00:19]} Rd8 {[%emt 0:00:03]} 30. Be2 {[%emt 0:00:07]} Kg7 {[%emt 0:00:08]} 31. Kf2 {[%emt 0:00:04]} Kf7 {[%emt 0:00:04]} 32. c4 {[%emt 0:00:03]} Na6 {[%emt 0:00:22]} 33. a3 {[%emt 0:00:14]} Nc7 {[%emt 0:00:01]} 34. Be3 {[%emt 0:00:19]} Rc8 {[%emt 0:00:15]} 35. Bf3 {[%emt 0:00:03]} Ne8 {[%emt 0:00:05]} 36. Ke2 {[%emt 0:00:19]} Nf6 {[%emt 0:00:04]} 37. Bd2 {[%emt 0:00:05]} Rd8 {[%emt 0:00:22]} 38. Bc3 {[%emt 0:00:07]} Ng4 {[%emt 0:00:15]} 39. Bxg4 {[%emt 0:00:03]} fxg4 {[%emt 0:00:07]} 40. Re3 {[%emt 0:00:10]} Bf5 {[%emt 0:00:02]} 41. Be5 {[%emt 0:00:09]} Rd7 {[%emt 0:00:20]} 42. Rc3 {[%emt 0:00:04]} Be4 {[%emt 0:00:11]} 43. g3 {[%emt 0:00:24]} Bf3+ {[%emt 0:00:01]} 44. Ke3 {[%emt 0:00:01]} Ke6 {[%emt 0:00:19]} 45. Rc1 {[%emt 0:00:24]} Kf5 {[%emt 0:00:07]} 46. Re1 {[%emt 0:00:15]} Be4 {[%emt 0:00:04]} 47. Ke2 {[%emt 0:00:09]} Rd3 {[%emt 0:00:06]} 48. b4 {[%emt 0:00:08]} Rxa3 {[%emt 0:00:08]} 49. bxc5 {[%emt 0:00:03]} bxc5 {[%emt 0:00:01]} 50. Rg1 {[%emt 0:00:08]} a5 {[%emt 0:00:18]} 51. Kd2 {[%emt 0:00:05]} a4 {[%emt 0:00:14]} 52. Kc1 {[%emt 0:00:23]} Ra2 {[%emt 0:00:07]} 53. Re1 {[%emt 0:00:06]} Rc2+ {[%emt 0:00:05]} 54. Kd1 {[%emt 0:00:00]} Rxc4 {[%emt 0:00:06]} 55. Re3 {[%emt 0:00:01]} Rb4 {[%emt 0:00:18]} 56. Rc3 {[%emt 0:00:05]} c4 {[%emt 0:00:11]} 57. Kd2 {[%emt 0:00:01]} Bd3 {[%emt 0:00:19]} 58. Ke3 {[%emt 0:00:01]} Ke6 {[%emt 0:00:10]} 59. Kd4 {[%emt 0:00:02]} Rb1 {[%emt 0:00:17]} 60. Ra3 {[%emt 0:00:07]} Rb4 {[%emt 0:00:06]} 61. Ra1 {[%emt 0:00:41]} Rb2 {[%emt 0:00:15]} 62. Rxa4 {[%emt 0:00:06]} Rg2 {[%emt 0:00:08]} 63. Ra7 {[%emt 0:00:08]} Bf5 {[%emt 0:00:11]} 64. Ra3 {[%emt 0:00:10]} Bd3 {[%emt 0:00:12]} 65. Ra8 {[%emt 0:00:07]} Kf7 {[%emt 0:00:02]} 66. Ra7 {[%emt 0:00:11]} Re2 {[%emt 0:00:05]} 67. Kd5 {[%emt 0:00:18]} Re3 {[%emt 0:00:09]} 68. Kd4 {[%emt 0:00:03]} Re2 {[%emt 0:00:21]} 69. Kd5 {[%emt 0:00:01]} Re1 {[%emt 0:00:09]} 70. Kd4 {[%emt 0:00:05]} Bf1 {[%emt 0:00:14]} 71. Rc7 {[%emt 0:00:15]} Rd1+ {[%emt 0:00:01]} 72. Ke4 {[%emt 0:00:19]} Bd3+ {[%emt 0:00:08]} 73. Ke3 {[%emt 0:00:09]} Ke8 {[%emt 0:00:04]} 74. Bc3 {[%emt 0:00:20]} Rg1 {[%emt 0:00:24]} 75. Bb4 {[%emt 0:00:37]} Rxg3+ {[%emt 0:00:07]} 76. Kd4 {[%emt 0:00:01]} Rf3 {[%emt 0:00:10]} 77. Rxe7+ {[%emt 0:00:20]} Kd8 {[%emt 0:00:01]} 78. Rf7 {[%emt 0:00:07]} Bf5 {[%emt 0:00:09]} 79. Kd5 {[%emt 0:00:06]} Rd3+ {[%emt 0:00:24]} 80. Kc6 {[%emt 0:00:07]} Re3 {[%emt 0:00:08]} 81. Rf8+ {[%emt 0:00:16]} Re8 {[%emt 0:00:01]} 82. Ba5+ {[%emt 0:00:02]} Ke7 {[%emt 0:00:02]} 83. Bb4+ {[%emt 0:00:01]} Kd8 {[%emt 0:00:13]} 84. Ba5+ {[%emt 0:00:25]} Ke7 {[%emt 0:00:01]} 85. Bb4+ {[%emt 0:00:08]} Kd8 {[%emt 0:00:02]} 86. Ba5+ {[%emt 0:00:13]} 1/2-1/2

[Event "Szansa Chess Open 2022"]
[Site "Warsaw"]
[Date "2022.09.17"]
[Round "3.9"]
[White "Celinski, Kamil"]
[Black "Jarmula, Lukasz"]
[Result "0-1"]
[ECO "B40"]
[WhiteElo "1959"]
[BlackElo "2457"]
[Annotator "ChessBase"]
[PlyCount "76"]
[EventDate "2022.09.17"]
[EventCountry "POL"]
[SourceTitle "playchess.com"]
[Source "ChessBase"]
[SourceQuality "1"]
[TimeControl "900+10"]

1. e4 {[%emt 0:00:02]} c5 {[%emt 0:00:02]} 2. Nf3 {[%emt 0:00:02]} e6 {[%emt 0:00:01]} 3. g3 {[%emt 0:00:06]} Nc6 {[%emt 0:00:11]} 4. Bg2 {[%emt 0:00:02]} Nf6 {[%emt 0:00:02]} 5. Nc3 {[%emt 0:00:05]} d5 {[%emt 0:00:16]} 6. exd5 {[%emt 0:00:02]} exd5 {[%emt 0:00:04]} 7. d4 {[%emt 0:00:04]} cxd4 {[%emt 0:00:49]} 8. Nxd4 {[%emt 0:00:06]} Be7 {[%emt 0:00:47]} 9. O-O {[%emt 0:00:16]} O-O {[%emt 0:00:03]} 10. Bg5 {[%emt 0:01:30]} h6 {[%emt 0:00:08]} 11. Bf4 {[%emt 0:02:27]} Bg4 {[%emt 0:00:42]} 12. Nde2 {[%emt 0:00:26]} d4 {[%emt 0:01:12]} 13. Ne4 {[%emt 0:01:46]} Nd5 14. f3 {[%emt 0:04:27]} Be6 {[%emt 0:02:09]} 15. Kh1 {[%emt 0:01:30]} Qb6 {[%emt 0:00:12]} 16. c4 {[%emt 0:00:57]} Ne3 {[%emt 0:00:38]} 17. Bxe3 {[%emt 0:00:09]} dxe3 {[%emt 0:00:02]} 18. b3 {[%emt 0:00:17]} Nb4 {[%emt 0:03:01]} 19. Nf4 {[%emt 0:01:51]} Rad8 {[%emt 0:02:12]} 20. Qe2 {[%emt 0:00:28]} Bf5 {[%emt 0:00:28]} 21. Rfd1 {[%emt 0:00:25]} g5 22. Nd5 {[%emt 0:00:32]} Nxd5 {[%emt 0:01:00]} 23. cxd5 {[%emt 0:00:07]} Bxe4 {[%emt 0:00:45]} 24. fxe4 {[%emt 0:00:03]} Bf6 {[%emt 0:00:07]} 25. Rac1 {[%emt 0:00:14]} Rc8 {[%emt 0:00:15]} 26. Bh3 {[%emt 0:00:37]} Rxc1 {[%emt 0:00:09]} 27. Rxc1 {[%emt 0:00:01]} a5 {[%emt 0:02:02]} 28. Rc4 {[%emt 0:00:31]} Kg7 {[%emt 0:00:14]} 29. Bf5 {[%emt 0:00:09]} Ra8 {[%emt 0:00:08]} 30. Kg2 {[%emt 0:00:31]} Ra6 {[%emt 0:00:22]} 31. Qd3 {[%emt 0:00:19]} a4 {[%emt 0:00:31]} 32. Kf3 {[%emt 0:00:02]} axb3 {[%emt 0:00:22]} 33. axb3 {[%emt 0:00:01]} Ra3 {[%emt 0:00:12]} 34. d6 {[%emt 0:00:24]} Rxb3 {[%emt 0:00:13]} 35. Qd5 {[%emt 0:00:05]} e2+ {[%emt 0:00:27]} 36. Kxe2 {[%emt 0:00:23]} Qe3+ {[%emt 0:00:02]} 37. Kf1 {[%emt 0:00:01]} Qf3+ {[%emt 0:00:02]} 38. Ke1 {[%emt 0:00:03]} Rb1+ {[%emt 0:00:02]} 0-1

[Event "Szansa Chess Open 2022"]
[Site "Warsaw"]
[Date "2022.09.17"]
[Round "3.10"]
[White "Golecki, Jan"]
[Black "Lewicki, Miroslaw"]
[Result "1-0"]
[ECO "B53"]
[WhiteElo "2193"]
[BlackElo "2336"]
[Annotator "ChessBase"]
[PlyCount "55"]
[EventDate "2022.09.17"]
[EventCountry "POL"]
[SourceTitle "playchess.com"]
[Source "ChessBase"]
[SourceQuality "1"]
[TimeControl "900+10"]

1. e4 {[%emt 0:00:03]} c5 {[%emt 0:00:01]} 2. Nf3 {[%emt 0:00:02]} d6 {[%emt 0:00:01]} 3. d4 {[%emt 0:00:01]} cxd4 {[%emt 0:00:03]} 4. Qxd4 {[%emt 0:00:02]} Bd7 {[%emt 0:00:06]} 5. Bg5 {[%emt 0:00:07]} Nc6 {[%emt 0:00:04]} 6. Qe3 {[%emt 0:00:01]} h6 {[%emt 0:00:12]} 7. Bh4 {[%emt 0:00:01]} g5 {[%emt 0:00:23]} 8. Bg3 {[%emt 0:00:01]} Bg7 {[%emt 0:00:02]} 9. c3 {[%emt 0:00:01]} Nf6 {[%emt 0:00:08]} 10. Nbd2 {[%emt 0:00:30]} Qc7 {[%emt 0:01:17]} 11. h3 {[%emt 0:00:30]} Ne5 {[%emt 0:02:08]} 12. Be2 {[%emt 0:00:39]} Bc6 {[%emt 0:00:06]} 13. Nd4 {[%emt 0:00:09]} Bd7 {[%emt 0:00:39]} 14. O-O-O {[%emt 0:01:36]} a6 {[%emt 0:01:21]} 15. Nf5 {[%emt 0:00:23]} Bxf5 {[%emt 0:00:05]} 16. exf5 {[%emt 0:00:01]} Rc8 {[%emt 0:01:39]} 17. Bxe5 {[%emt 0:00:11]} dxe5 {[%emt 0:00:17]} 18. Ne4 {[%emt 0:00:28]} Qa5 {[%emt 0:00:38]} 19. Kb1 {[%emt 0:00:28]} O-O {[%emt 0:00:25]} 20. h4 {[%emt 0:00:26]} Nd5 {[%emt 0:01:18]} 21. Rxd5 {[%emt 0:00:00]} Qxd5 {[%emt 0:00:04]} 22. hxg5 {[%emt 0:00:01]} hxg5 {[%emt 0:01:41]} 23. Bf3 {[%emt 0:01:43]} Qd7 {[%emt 0:01:38]} 24. Qxg5 {[%emt 0:00:06]} Rc6 {[%emt 0:00:24]} 25. Ng3 {[%emt 0:00:46]} Qd3+ {[%emt 0:02:14]} 26. Ka1 {[%emt 0:00:01]} Rh6 {[%emt 0:00:02]} 27. Rxh6 {[%emt 0:00:29]} e4 {[%emt 0:01:36]} 28. Bxe4 {[%emt 0:00:20]} 1-0

[Event "Szansa Chess Open 2022"]
[Site "Warsaw"]
[Date "2022.09.17"]
[Round "4.1"]
[White "Smykalo, Severyn"]
[Black "Gumularz, Szymon"]
[Result "0-1"]
[ECO "A40"]
[WhiteElo "1840"]
[BlackElo "2532"]
[Annotator "ChessBase"]
[PlyCount "130"]
[EventDate "2022.09.17"]
[EventCountry "POL"]
[SourceTitle "playchess.com"]
[Source "ChessBase"]
[SourceQuality "1"]
[TimeControl "900+10"]

1. d4 {[%emt 0:00:01]} e6 {[%emt 0:00:06]} 2. c4 {[%emt 0:00:04]} b6 {[%emt 0:00:01]} 3. Nf3 {[%emt 0:00:46]} Bb7 {[%emt 0:00:02]} 4. Bg5 {[%emt 0:01:03]} Be7 {[%emt 0:00:09]} 5. Bxe7 {[%emt 0:00:20]} Qxe7 {[%emt 0:00:01]} 6. Nbd2 {[%emt 0:00:01]} Nf6 {[%emt 0:00:02]} 7. e3 {[%emt 0:00:09]} O-O {[%emt 0:00:03]} 8. Bd3 {[%emt 0:00:01]} c5 {[%emt 0:00:01]} 9. O-O {[%emt 0:00:09]} Nc6 {[%emt 0:00:03]} 10. Rc1 {[%emt 0:00:41]} Rac8 {[%emt 0:00:03]} 11. Qe2 {[%emt 0:00:52]} cxd4 {[%emt 0:00:03]} 12. exd4 {[%emt 0:00:43]} d5 {[%emt 0:00:05]} 13. b3 {[%emt 0:02:25]} Rfd8 {[%emt 0:00:13]} 14. Qe3 {[%emt 0:00:31]} dxc4 {[%emt 0:00:35]} 15. bxc4 {[%emt 0:00:12]} g6 {[%emt 0:00:13]} 16. Rfd1 {[%emt 0:01:23]} Qd6 {[%emt 0:00:09]} 17. Ne4 {[%emt 0:00:13]} Nxe4 {[%emt 0:00:03]} 18. Bxe4 {[%emt 0:00:03]} Na5 {[%emt 0:00:05]} 19. Bxb7 {[%emt 0:01:15]} Nxb7 {[%emt 0:00:02]} 20. Ne5 {[%emt 0:00:11]} Qf8 {[%emt 0:00:32]} 21. Ng4 {[%emt 0:00:39]} Qg7 {[%emt 0:00:09]} 22. d5 {[%emt 0:01:49]} Nc5 {[%emt 0:00:12]} 23. Qf4 {[%emt 0:01:01]} Kh8 {[%emt 0:02:10]} 24. h4 {[%emt 0:00:50]} exd5 {[%emt 0:01:01]} 25. cxd5 {[%emt 0:00:11]} Nd7 {[%emt 0:00:43]} 26. Rc7 {[%emt 0:00:32]} f5 {[%emt 0:00:11]} 27. Ne3 {[%emt 0:01:00]} Qe5 {[%emt 0:00:38]} 28. Qxe5+ {[%emt 0:00:23]} Nxe5 {[%emt 0:00:01]} 29. Rxa7 {[%emt 0:00:17]} f4 {[%emt 0:00:01]} 30. Re7 {[%emt 0:00:26]} Re8 {[%emt 0:00:18]} 31. Rxe8+ {[%emt 0:00:10]} Rxe8 {[%emt 0:00:01]} 32. Nc2 {[%emt 0:00:07]} Kg7 {[%emt 0:00:18]} 33. Nd4 {[%emt 0:00:07]} Kf6 {[%emt 0:00:01]} 34. g3 {[%emt 0:00:13]} f3 {[%emt 0:00:11]} 35. Rb1 {[%emt 0:00:25]} Nd7 {[%emt 0:00:26]} 36. Nxf3 {[%emt 0:00:04]} Re2 {[%emt 0:00:03]} 37. a3 {[%emt 0:00:08]} Ra2 {[%emt 0:00:06]} 38. Rb3 {[%emt 0:00:09]} Ke7 {[%emt 0:00:04]} 39. Ng5 {[%emt 0:00:05]} h6 {[%emt 0:00:26]} 40. Re3+ {[%emt 0:00:02]} Kf8 {[%emt 0:00:24]} 41. Ne6+ {[%emt 0:00:03]} Kf7 {[%emt 0:00:01]} 42. d6 {[%emt 0:00:12]} Rd2 {[%emt 0:00:20]} 43. Nd8+ {[%emt 0:00:03]} Kf6 {[%emt 0:00:08]} 44. Nb7 {[%emt 0:00:42]} Ne5 {[%emt 0:00:13]} 45. Rb3 {[%emt 0:00:22]} Nd7 {[%emt 0:00:01]} 46. Kf1 {[%emt 0:00:10]} Ke6 {[%emt 0:00:28]} 47. Ke1 {[%emt 0:00:05]} Ra2 {[%emt 0:00:02]} 48. Rd3 {[%emt 0:00:10]} Rc2 {[%emt 0:00:20]} 49. Nd8+ {[%emt 0:00:23]} Kf6 {[%emt 0:00:07]} 50. Rf3+ {[%emt 0:00:03]} Ke5 {[%emt 0:00:03]} 51. Nf7+ {[%emt 0:00:05]} Ke6 {[%emt 0:00:01]} 52. Nxh6 {[%emt 0:00:09]} Ne5 {[%emt 0:00:02]} 53. Rb3 {[%emt 0:00:14]} Rc1+ {[%emt 0:00:19]} 54. Ke2 {[%emt 0:00:10]} Rc2+ {[%emt 0:00:02]} 55. Kf1 {[%emt 0:00:10]} Nc4 {[%emt 0:00:04]} 56. Kg2 {[%emt 0:00:15]} Kxd6 {[%emt 0:00:06]} 57. Ng4 {[%emt 0:00:06]} Ra2 {[%emt 0:01:12]} 58. Ne3 {[%emt 0:00:06]} b5 {[%emt 0:00:01]} 59. Nxc4+ {[%emt 0:00:34]} bxc4 {[%emt 0:00:00]} 60. Rb6+ {[%emt 0:00:04]} Kd5 {[%emt 0:00:29]} 61. Rxg6 {[%emt 0:00:02]} c3 {[%emt 0:00:52]} 62. Rg8 {[%emt 0:00:09]} Rxa3 {[%emt 0:00:01]} 63. Rc8 {[%emt 0:00:04]} Kd4 {[%emt 0:00:01]} 64. Kf3 {[%emt 0:00:10]} c2+ {[%emt 0:00:02]} 65. Ke2 {[%emt 0:00:22]} Rc3 {[%emt 0:00:02]} 0-1

[Event "Szansa Chess Open 2022"]
[Site "Warsaw"]
[Date "2022.09.17"]
[Round "4.2"]
[White "Kosakowski, Jakub"]
[Black "Kokoszczynski, Jan"]
[Result "0-1"]
[ECO "C80"]
[WhiteElo "2457"]
[BlackElo "2313"]
[Annotator "ChessBase"]
[PlyCount "112"]
[EventDate "2022.09.17"]
[EventCountry "POL"]
[SourceTitle "playchess.com"]
[Source "ChessBase"]
[SourceQuality "1"]
[TimeControl "900+10"]

1. e4 {[%emt 0:00:05]} e5 {[%emt 0:00:02]} 2. Nf3 {[%emt 0:00:03]} Nc6 {[%emt 0:00:02]} 3. Bb5 {[%emt 0:00:09]} a6 {[%emt 0:00:11]} 4. Ba4 {[%emt 0:00:03]} Nf6 {[%emt 0:00:03]} 5. O-O {[%emt 0:00:04]} Nxe4 {[%emt 0:00:02]} 6. d4 {[%emt 0:00:04]} Be7 {[%emt 0:00:02]} 7. Re1 {[%emt 0:00:05]} b5 {[%emt 0:00:26]} 8. Rxe4 {[%emt 0:00:03]} d5 {[%emt 0:00:03]} 9. Nxe5 {[%emt 0:00:03]} Nxe5 {[%emt 0:00:03]} 10. Rxe5 {[%emt 0:00:02]} bxa4 {[%emt 0:00:01]} 11. b3 {[%emt 0:00:02]} O-O {[%emt 0:00:26]} 12. Ba3 {[%emt 0:00:08]} Bxa3 {[%emt 0:00:47]} 13. Nxa3 {[%emt 0:00:03]} Qd6 {[%emt 0:00:02]} 14. Nb1 {[%emt 0:00:08]} Be6 {[%emt 0:02:28]} 15. Nc3 {[%emt 0:00:11]} axb3 {[%emt 0:00:28]} 16. axb3 {[%emt 0:00:52]} c5 {[%emt 0:00:11]} 17. Na4 {[%emt 0:01:25]} Rac8 {[%emt 0:00:17]} 18. c3 {[%emt 0:00:29]} Rc6 {[%emt 0:01:03]} 19. Qe1 {[%emt 0:00:47]} cxd4 {[%emt 0:02:52]} 20. cxd4 {[%emt 0:00:03]} Rfc8 {[%emt 0:00:46]} 21. Nc5 {[%emt 0:00:46]} Rxc5 {[%emt 0:00:20]} 22. dxc5 {[%emt 0:00:03]} Rxc5 {[%emt 0:00:02]} 23. Rd1 {[%emt 0:02:05]} h6 {[%emt 0:00:35]} 24. h3 {[%emt 0:00:48]} Rb5 {[%emt 0:01:04]} 25. Re3 {[%emt 0:02:14]} Qb6 {[%emt 0:00:51]} 26. Qc3 {[%emt 0:05:26]} Rb4 {[%emt 0:02:05]} 27. Red3 {[%emt 0:00:50]} a5 {[%emt 0:00:08]} 28. R1d2 {[%emt 0:00:28]} Kh7 {[%emt 0:01:07]} 29. Kh2 {[%emt 0:01:06]} Kg8 {[%emt 0:00:13]} 30. Qe5 {[%emt 0:00:27]} Re4 {[%emt 0:01:00]} 31. Qg3 {[%emt 0:00:02]} Re1 {[%emt 0:00:31]} 32. Rd4 {[%emt 0:00:41]} Rb1 {[%emt 0:00:16]} 33. R2d3 {[%emt 0:00:18]} Qc5 {[%emt 0:00:36]} 34. Rh4 {[%emt 0:00:10]} Qc1 {[%emt 0:00:29]} 35. Qe3 {[%emt 0:00:28]} Qh1+ {[%emt 0:00:43]} 36. Kg3 {[%emt 0:00:01]} Re1 {[%emt 0:00:01]} 37. Qf4 {[%emt 0:00:26]} g5 {[%emt 0:00:23]} 38. Qb8+ {[%emt 0:00:07]} Kh7 {[%emt 0:00:06]} 39. Rxh6+ {[%emt 0:00:11]} Kxh6 {[%emt 0:00:01]} 40. Qh8+ {[%emt 0:00:02]} Kg6 {[%emt 0:00:01]} 41. Qg8+ {[%emt 0:00:16]} Kh6 {[%emt 0:00:43]} 42. Qh8+ {[%emt 0:00:01]} Kg6 {[%emt 0:00:01]} 43. Qg8+ {[%emt 0:00:01]} Kh6 {[%emt 0:00:31]} 44. f4 {[%emt 0:00:04]} gxf4+ {[%emt 0:00:03]} 45. Kh4 {[%emt 0:00:01]} Qf1 {[%emt 0:00:08]} 46. Rf3 {[%emt 0:00:30]} Qe2 {[%emt 0:00:12]} 47. g4 {[%emt 0:00:23]} Bxg4 {[%emt 0:00:12]} 48. Qh8+ {[%emt 0:00:12]} Kg6 {[%emt 0:00:01]} 49. Qg8+ {[%emt 0:00:01]} Kh6 {[%emt 0:00:00]} 50. Qh8+ {[%emt 0:00:16]} Kg6 {[%emt 0:00:02]} 51. Qg8+ {[%emt 0:00:01]} Kh6 52. Qg5+ {[%emt 0:00:22]} Kh7 {[%emt 0:00:02]} 53. Rxf4 {[%emt 0:00:01]} Be6 {[%emt 0:00:39]} 54. b4 {[%emt 0:00:21]} axb4 {[%emt 0:00:19]} 55. Qg3 {[%emt 0:00:11]} Qe5 {[%emt 0:00:12]} 56. Qd3+ {[%emt 0:00:05]} Re4 {[%emt 0:00:12]} 0-1

[Event "Szansa Chess Open 2022"]
[Site "Warsaw"]
[Date "2022.09.17"]
[Round "4.3"]
[White "Smieszek, Wojciech"]
[Black "Jakubowski, Krzysztof"]
[Result "1/2-1/2"]
[ECO "B48"]
[WhiteElo "2082"]
[BlackElo "2466"]
[Annotator "ChessBase"]
[PlyCount "132"]
[EventDate "2022.09.17"]
[EventCountry "POL"]
[SourceTitle "playchess.com"]
[Source "ChessBase"]
[SourceQuality "1"]
[TimeControl "900+10"]

1. e4 {[%emt 0:00:03]} c5 {[%emt 0:00:02]} 2. Nf3 {[%emt 0:00:02]} e6 {[%emt 0:00:02]} 3. d4 {[%emt 0:00:02]} cxd4 {[%emt 0:00:02]} 4. Nxd4 {[%emt 0:00:02]} Nc6 {[%emt 0:00:02]} 5. Nc3 {[%emt 0:00:02]} Qc7 {[%emt 0:00:02]} 6. Be3 {[%emt 0:00:03]} a6 {[%emt 0:00:03]} 7. Bd3 {[%emt 0:00:04]} Nf6 {[%emt 0:00:11]} 8. O-O {[%emt 0:00:05]} Ne5 {[%emt 0:00:06]} 9. h3 {[%emt 0:00:04]} Bc5 {[%emt 0:00:03]} 10. f4 {[%emt 0:01:45]} d6 {[%emt 0:00:07]} 11. Kh1 {[%emt 0:00:14]} Ned7 {[%emt 0:00:26]} 12. Qe1 {[%emt 0:00:23]} b5 {[%emt 0:00:15]} 13. Qg3 {[%emt 0:01:19]} Bb7 {[%emt 0:01:05]} 14. a3 {[%emt 0:00:09]} g6 {[%emt 0:00:26]} 15. Rad1 {[%emt 0:01:16]} O-O {[%emt 0:00:38]} 16. f5 {[%emt 0:01:43]} Nh5 {[%emt 0:01:09]} 17. Qh4 {[%emt 0:01:28]} e5 {[%emt 0:03:13]} 18. Ndxb5 {[%emt 0:01:59]} axb5 {[%emt 0:00:09]} 19. Nxb5 {[%emt 0:00:01]} Qb6 {[%emt 0:05:13]} 20. Bh6 {[%emt 0:00:11]} Be3 {[%emt 0:00:10]} 21. fxg6 {[%emt 0:01:16]} hxg6 {[%emt 0:00:12]} 22. Bxf8 {[%emt 0:00:43]} Rxf8 {[%emt 0:00:09]} 23. Bc4 {[%emt 0:00:15]} d5 {[%emt 0:00:54]} 24. exd5 {[%emt 0:01:36]} Bf4 {[%emt 0:00:08]} 25. Rf3 {[%emt 0:01:19]} Qc5 {[%emt 0:01:46]} 26. b3 {[%emt 0:00:24]} Nb6 {[%emt 0:00:02]} 27. Qf2 {[%emt 0:01:35]} Qxf2 {[%emt 0:01:11]} 28. Rxf2 {[%emt 0:00:01]} Ng3+ {[%emt 0:00:01]} 29. Kh2 {[%emt 0:00:11]} Ne4+ {[%emt 0:00:45]} 30. Rxf4 {[%emt 0:00:02]} exf4 {[%emt 0:00:02]} 31. Rd4 {[%emt 0:00:17]} Nf6 {[%emt 0:00:12]} 32. Nd6 {[%emt 0:00:56]} Bxd5 {[%emt 0:00:09]} 33. Bxd5 {[%emt 0:00:08]} Nbxd5 {[%emt 0:00:08]} 34. c4 {[%emt 0:00:11]} Ne3 {[%emt 0:00:15]} 35. Rxf4 {[%emt 0:00:14]} Nd7 {[%emt 0:00:22]} 36. Rf3 {[%emt 0:00:21]} Nc2 {[%emt 0:00:08]} 37. b4 {[%emt 0:00:03]} f5 {[%emt 0:00:16]} 38. c5 {[%emt 0:00:12]} Ra8 {[%emt 0:00:07]} 39. Nb5 {[%emt 0:00:17]} f4 {[%emt 0:00:25]} 40. Rc3 {[%emt 0:00:25]} Ne3 {[%emt 0:00:03]} 41. Nc7 {[%emt 0:00:07]} Rf8 {[%emt 0:00:51]} 42. c6 {[%emt 0:00:11]} Nb6 {[%emt 0:00:02]} 43. Ne6 {[%emt 0:00:03]} Rf6 {[%emt 0:00:03]} 44. Nd4 {[%emt 0:00:19]} Rd6 {[%emt 0:00:09]} 45. Ne2 {[%emt 0:00:21]} g5 {[%emt 0:00:09]} 46. c7 {[%emt 0:00:06]} Nc8 {[%emt 0:00:26]} 47. b5 {[%emt 0:00:11]} Rd2 {[%emt 0:00:11]} 48. b6 {[%emt 0:00:13]} Nxb6 {[%emt 0:00:19]} 49. Rb3 {[%emt 0:00:01]} Nf1+ {[%emt 0:00:15]} 50. Kg1 {[%emt 0:00:17]} Rd1 {[%emt 0:00:01]} 51. Kf2 {[%emt 0:00:09]} Nd2 {[%emt 0:00:09]} 52. Nc3 {[%emt 0:00:12]} Nxb3 {[%emt 0:00:19]} 53. Nxd1 {[%emt 0:00:01]} Nd4 {[%emt 0:00:01]} 54. Nc3 {[%emt 0:00:06]} Kf7 {[%emt 0:00:11]} 55. Nd5 {[%emt 0:00:10]} Nc8 {[%emt 0:00:03]} 56. g3 {[%emt 0:00:24]} Ke6 {[%emt 0:00:04]} 57. gxf4 {[%emt 0:00:08]} Kxd5 {[%emt 0:00:02]} 58. fxg5 {[%emt 0:00:01]} Ke5 {[%emt 0:00:05]} 59. h4 {[%emt 0:00:11]} Kf5 {[%emt 0:00:03]} 60. a4 {[%emt 0:00:06]} Ne6 {[%emt 0:00:06]} 61. Ke3 {[%emt 0:00:04]} Nxc7 {[%emt 0:00:03]} 62. Kd4 {[%emt 0:00:04]} Ne6+ {[%emt 0:00:20]} 63. Kc4 {[%emt 0:00:08]} Nb6+ {[%emt 0:00:17]} 64. Kb5 {[%emt 0:00:05]} Nxa4 {[%emt 0:00:02]} 65. Kxa4 {[%emt 0:00:02]} Nxg5 {[%emt 0:00:01]} 66. hxg5 {[%emt 0:00:02]} Kxg5 {[%emt 0:00:01]} 1/2-1/2